﻿Department Family,Entity,Date,Expense Type,Expense Area,Supplier,Amount in Sterling
Companies House,CH,08/09/2020,Contract Staff         ,Accounting                    ,Hays Specialist Recruitment Ltd         ,£689.09
Companies House,CH,02/09/2020,Contract Staff         ,Accounting                    ,MICHAEL PAGE INTERNATIONAL RECRUITMENT  ,"£1,200.00"
Companies House,CH,08/09/2020,Contract Staff         ,Accounting                    ,MICHAEL PAGE INTERNATIONAL RECRUITMENT  ,"£1,200.00"
Companies House,CH,15/09/2020,Contract Staff         ,Accounting                    ,MICHAEL PAGE INTERNATIONAL RECRUITMENT  ,"£1,500.00"
Companies House,CH,23/09/2020,Contract Staff         ,Accounting                    ,MICHAEL PAGE INTERNATIONAL RECRUITMENT  ,"£1,575.00"
Companies House,CH,10/09/2020,Contract Staff         ,Accounting                    ,MICHAEL PAGE INTERNATIONAL RECRUITMENT  ,"£1,625.00"
Companies House,CH,24/09/2020,Contract Staff         ,Accounting                    ,MICHAEL PAGE INTERNATIONAL RECRUITMENT  ,"£2,925.00"
Companies House,CH,10/09/2020,Contract Staff         ,Accounting                    ,MICHAEL PAGE INTERNATIONAL RECRUITMENT  ,"£4,200.00"
Companies House,CH,10/09/2020,Contract Staff         ,Accounting                    ,MICHAEL PAGE INTERNATIONAL RECRUITMENT  ,"£7,637.50"
Companies House,CH,08/09/2020,Contract Staff         ,Analysis and Corporate Insight,CONCEPT RESOURCING T/A CONCEPT INFORMATION,£901.76
Companies House,CH,10/09/2020,Contract Staff         ,Analysis and Corporate Insight,CONCEPT RESOURCING T/A CONCEPT INFORMATION,£929.94
Companies House,CH,23/09/2020,Contract Staff         ,Analysis and Corporate Insight,CONCEPT RESOURCING T/A CONCEPT INFORMATION,"£1,057.95"
Companies House,CH,02/09/2020,Contract Staff         ,Analysis and Corporate Insight,CONCEPT RESOURCING T/A CONCEPT INFORMATION,"£1,099.02"
Companies House,CH,23/09/2020,Contract Staff         ,Analysis and Corporate Insight,CONCEPT RESOURCING T/A CONCEPT INFORMATION,"£1,127.20"
Companies House,CH,25/09/2020,Contract Staff         ,Analysis and Corporate Insight,CONCEPT RESOURCING T/A CONCEPT INFORMATION,"£1,127.20"
Companies House,CH,10/09/2020,Contract Staff         ,Analysis and Corporate Insight,CONCEPT RESOURCING T/A CONCEPT INFORMATION,"£1,410.60"
Companies House,CH,08/09/2020,Contract Staff         ,Analysis and Corporate Insight,CONCEPT RESOURCING T/A CONCEPT INFORMATION,"£1,442.52"
Companies House,CH,10/09/2020,Contract Staff         ,Analysis and Corporate Insight,CONCEPT RESOURCING T/A CONCEPT INFORMATION,"£1,442.52"
Companies House,CH,08/09/2020,Contract Staff         ,Analysis and Corporate Insight,CONCEPT RESOURCING T/A CONCEPT INFORMATION,"£1,586.93"
Companies House,CH,10/09/2020,Contract Staff         ,Analysis and Corporate Insight,CONCEPT RESOURCING T/A CONCEPT INFORMATION,"£1,700.00"
Companies House,CH,02/09/2020,Contract Staff         ,Analysis and Corporate Insight,CONCEPT RESOURCING T/A CONCEPT INFORMATION,"£1,763.25"
Companies House,CH,02/09/2020,Contract Staff         ,Analysis and Corporate Insight,CONCEPT RESOURCING T/A CONCEPT INFORMATION,"£1,803.15"
Companies House,CH,23/09/2020,Contract Staff         ,Analysis and Corporate Insight,CONCEPT RESOURCING T/A CONCEPT INFORMATION,"£1,803.15"
Companies House,CH,25/09/2020,Contract Staff         ,Analysis and Corporate Insight,CONCEPT RESOURCING T/A CONCEPT INFORMATION,"£1,803.15"
Companies House,CH,02/09/2020,Contract Staff         ,Analysis and Corporate Insight,CONCEPT RESOURCING T/A CONCEPT INFORMATION,"£2,125.00"
Companies House,CH,08/09/2020,Contract Staff         ,Analysis and Corporate Insight,CONCEPT RESOURCING T/A CONCEPT INFORMATION,"£2,125.00"
Companies House,CH,23/09/2020,Contract Staff         ,Analysis and Corporate Insight,CONCEPT RESOURCING T/A CONCEPT INFORMATION,"£2,125.00"
Companies House,CH,25/09/2020,Contract Staff         ,Analysis and Corporate Insight,CONCEPT RESOURCING T/A CONCEPT INFORMATION,"£2,125.00"
Companies House,CH,10/09/2020,Contract Staff         ,Building Services             ,Hays Specialist Recruitment Ltd         ,"£1,012.03"
Companies House,CH,08/09/2020,Contract Staff         ,Building Services             ,Hays Specialist Recruitment Ltd         ,"£1,518.05"
Companies House,CH,25/09/2020,Contract Staff         ,Building Services             ,Hays Specialist Recruitment Ltd         ,"£1,581.31"
Companies House,CH,02/09/2020,Contract Staff         ,Building Services             ,Hays Specialist Recruitment Ltd         ,"£1,602.38"
Companies House,CH,23/09/2020,Contract Staff         ,Building Services             ,Hays Specialist Recruitment Ltd         ,"£1,623.47"
Companies House,CH,10/09/2020,Contract Staff         ,Building Services             ,Hays Specialist Recruitment Ltd         ,"£1,786.56"
Companies House,CH,04/09/2020,Contract Staff         ,Building Services             ,Hays Specialist Recruitment Ltd         ,"£2,233.20"
Companies House,CH,23/09/2020,Contract Staff         ,Building Services             ,Hays Specialist Recruitment Ltd         ,"£2,233.20"
Companies House,CH,24/09/2020,Contract Staff         ,Building Services             ,Hays Specialist Recruitment Ltd         ,"£2,233.20"
Companies House,CH,08/09/2020,Contract Staff         ,Edinburgh                     ,Hays Specialist Recruitment Ltd         ,£582.19
Companies House,CH,08/09/2020,Contract Staff         ,Edinburgh                     ,Hays Specialist Recruitment Ltd         ,£582.19
Companies House,CH,10/09/2020,Contract Staff         ,Edinburgh                     ,Hays Specialist Recruitment Ltd         ,£582.19
Companies House,CH,08/09/2020,Contract Staff         ,Edinburgh                     ,Hays Specialist Recruitment Ltd         ,£727.74
Companies House,CH,23/09/2020,Contract Staff         ,Edinburgh                     ,Hays Specialist Recruitment Ltd         ,£727.74
Companies House,CH,23/09/2020,Contract Staff         ,Edinburgh                     ,Hays Specialist Recruitment Ltd         ,£727.74
Companies House,CH,23/09/2020,Contract Staff         ,Edinburgh                     ,Hays Specialist Recruitment Ltd         ,£727.74
Companies House,CH,23/09/2020,Contract Staff         ,Edinburgh                     ,Hays Specialist Recruitment Ltd         ,£727.74
Companies House,CH,25/09/2020,Contract Staff         ,Edinburgh                     ,Hays Specialist Recruitment Ltd         ,£727.74
Companies House,CH,25/09/2020,Contract Staff         ,Edinburgh                     ,Hays Specialist Recruitment Ltd         ,£727.74
Companies House,CH,29/09/2020,Contract Staff         ,Edinburgh                     ,Hays Specialist Recruitment Ltd         ,£727.74
Companies House,CH,23/09/2020,Contract Staff         ,Internal Communications                ,Hays Specialist Recruitment Ltd         ,"£1,236.30"
Companies House,CH,25/09/2020,Contract Staff         ,Internal Communications                ,Hays Specialist Recruitment Ltd         ,"£1,263.60"
Companies House,CH,04/09/2020,Contract Staff         ,Internal Communications                ,Hays Specialist Recruitment Ltd         ,"£1,741.92"
Companies House,CH,08/09/2020,Contract Staff         ,Internal Communications                ,Hays Specialist Recruitment Ltd         ,"£1,741.92"
Companies House,CH,15/09/2020,Contract Staff         ,Internal Communications                ,Hays Specialist Recruitment Ltd         ,"£2,177.40"
Companies House,CH,24/09/2020,Contract Staff         ,Internal Communications                ,Hays Specialist Recruitment Ltd         ,"£2,177.40"
Companies House,CH,08/09/2020,Contract Staff         ,IT Infrastructure             ,Hays Specialist Recruitment Ltd         ,"£2,600.16"
Companies House,CH,08/09/2020,Contract Staff         ,IT Infrastructure             ,Spring Technology Staffing Services Ltd ,"£2,702.40"
Companies House,CH,04/09/2020,Contract Staff         ,IT Infrastructure             ,Hays Specialist Recruitment Ltd         ,"£3,250.20"
Companies House,CH,15/09/2020,Contract Staff         ,IT Infrastructure             ,Hays Specialist Recruitment Ltd         ,"£3,250.20"
Companies House,CH,24/09/2020,Contract Staff         ,IT Infrastructure             ,Hays Specialist Recruitment Ltd         ,"£3,250.20"
Companies House,CH,02/09/2020,Contract Staff         ,IT Infrastructure             ,Spring Technology Staffing Services Ltd ,"£3,378.00"
Companies House,CH,15/09/2020,Contract Staff         ,IT Infrastructure             ,Spring Technology Staffing Services Ltd ,"£3,378.00"
Companies House,CH,25/09/2020,Contract Staff         ,IT Infrastructure             ,Spring Technology Staffing Services Ltd ,"£3,378.00"
Companies House,CH,02/09/2020,Contract Staff         ,IT Infrastructure             ,Spring Technology Staffing Services Ltd ,"£3,411.60"
Companies House,CH,08/09/2020,Contract Staff         ,IT Infrastructure             ,Spring Technology Staffing Services Ltd ,"£3,411.60"
Companies House,CH,10/09/2020,Contract Staff         ,IT Infrastructure             ,Spring Technology Staffing Services Ltd ,"£3,411.60"
Companies House,CH,23/09/2020,Contract Staff         ,IT Infrastructure             ,Spring Technology Staffing Services Ltd ,"£4,264.50"
Companies House,CH,29/09/2020,Contract Staff         ,IT Infrastructure             ,Spring Technology Staffing Services Ltd ,"£4,264.50"
Companies House,CH,08/09/2020,Contract Staff         ,IT Infrastructure             ,ALEXANDER MANN SOLUTIONS                ,"£5,127.73"
Companies House,CH,25/09/2020,Contract Staff         ,IT Infrastructure             ,ALEXANDER MANN SOLUTIONS                ,"£7,976.47"
Companies House,CH,04/09/2020,Contract Staff         ,Late Filing Penalties Accounting                ,Hays Specialist Recruitment Ltd         ,£633.60
Companies House,CH,08/09/2020,Contract Staff         ,Late Filing Penalties Accounting                ,Hays Specialist Recruitment Ltd         ,"£2,317.34"
Companies House,CH,02/09/2020,Contract Staff         ,Late Filing Penalties Accounting                ,Hays Specialist Recruitment Ltd         ,"£2,896.68"
Companies House,CH,15/09/2020,Contract Staff         ,Late Filing Penalties Accounting                ,Hays Specialist Recruitment Ltd         ,"£2,896.68"
Companies House,CH,24/09/2020,Contract Staff         ,Late Filing Penalties Accounting                ,Hays Specialist Recruitment Ltd         ,"£2,896.68"
Companies House,CH,29/09/2020,Contract Staff         ,Late Filing Penalties Accounting                ,Hays Specialist Recruitment Ltd         ,"£2,896.68"
Companies House,CH,24/09/2020,Contract Staff         ,Projects                            ,Hays Specialist Recruitment Ltd         ,"£2,286.11"
Companies House,CH,10/09/2020,Contract Staff         ,Projects                            ,Hays Specialist Recruitment Ltd         ,"£2,612.69"
Companies House,CH,08/09/2020,Contract Staff         ,Projects                            ,Hays Specialist Recruitment Ltd         ,"£2,686.37"
Companies House,CH,08/09/2020,Contract Staff         ,Projects                            ,Hays Specialist Recruitment Ltd         ,"£3,265.86"
Companies House,CH,23/09/2020,Contract Staff         ,Projects                            ,Hays Specialist Recruitment Ltd         ,"£3,265.86"
Companies House,CH,04/09/2020,Contract Staff         ,Projects                            ,Hays Specialist Recruitment Ltd         ,"£3,357.96"
Companies House,CH,04/09/2020,Contract Staff         ,Projects                            ,Hays Specialist Recruitment Ltd         ,"£3,357.96"
Companies House,CH,04/09/2020,Contract Staff         ,Projects                            ,Hays Specialist Recruitment Ltd         ,"£3,357.96"
Companies House,CH,04/09/2020,Contract Staff         ,Projects                            ,Hays Specialist Recruitment Ltd         ,"£3,357.96"
Companies House,CH,08/09/2020,Contract Staff         ,Projects                            ,Hays Specialist Recruitment Ltd         ,"£3,357.96"
Companies House,CH,23/09/2020,Contract Staff         ,Projects                            ,Hays Specialist Recruitment Ltd         ,"£3,357.96"
Companies House,CH,24/09/2020,Contract Staff         ,Projects                            ,Hays Specialist Recruitment Ltd         ,"£3,357.96"
Companies House,CH,11/09/2020,Contract Staff         ,Procurement                   ,Hays Specialist Recruitment Ltd         ,"£2,593.01"
Companies House,CH,02/09/2020,Contract Staff         ,Procurement                   ,Hays Specialist Recruitment Ltd         ,"£3,241.26"
Companies House,CH,04/09/2020,Contract Staff         ,Procurement                   ,Hays Specialist Recruitment Ltd         ,"£3,241.26"
Companies House,CH,08/09/2020,Contract Staff         ,Programme                     ,Hays Specialist Recruitment Ltd         ,"£1,510.60"
Companies House,CH,02/09/2020,Contract Staff         ,Programme                     ,Hays Specialist Recruitment Ltd         ,"£2,060.06"
Companies House,CH,08/09/2020,Contract Staff         ,Programme                     ,Hays Specialist Recruitment Ltd         ,"£2,060.06"
Companies House,CH,11/09/2020,Contract Staff         ,Programme                     ,Hays Specialist Recruitment Ltd         ,"£2,060.06"
Companies House,CH,02/09/2020,Contract Staff         ,Programme                     ,Hays Specialist Recruitment Ltd         ,"£2,280.14"
Companies House,CH,29/09/2020,Contract Staff         ,Programme                     ,Hays Specialist Recruitment Ltd         ,"£2,317.57"
Companies House,CH,29/09/2020,Contract Staff         ,Programme                     ,Spring Technology Staffing Services Ltd ,"£2,433.60"
Companies House,CH,02/09/2020,Contract Staff         ,Programme                     ,Hays Specialist Recruitment Ltd         ,"£2,534.16"
Companies House,CH,15/09/2020,Contract Staff         ,Programme                     ,Hays Specialist Recruitment Ltd         ,"£2,534.16"
Companies House,CH,23/09/2020,Contract Staff         ,Programme                     ,Hays Specialist Recruitment Ltd         ,"£2,575.08"
Companies House,CH,11/09/2020,Contract Staff         ,Programme                     ,Hays Specialist Recruitment Ltd         ,"£2,850.18"
Companies House,CH,23/09/2020,Contract Staff         ,Programme                     ,Hays Specialist Recruitment Ltd         ,"£2,850.18"
Companies House,CH,25/09/2020,Contract Staff         ,Programme                     ,Hays Specialist Recruitment Ltd         ,"£2,850.18"
Companies House,CH,08/09/2020,Contract Staff         ,Programme                     ,Spring Technology Staffing Services Ltd ,"£3,042.00"
Companies House,CH,29/09/2020,Contract Staff         ,Programme                     ,Spring Technology Staffing Services Ltd ,"£3,042.00"
Companies House,CH,29/09/2020,Contract Staff         ,Programme                     ,Spring Technology Staffing Services Ltd ,"£3,042.00"
Companies House,CH,15/09/2020,Contract Staff         ,Programme                     ,Hays Specialist Recruitment Ltd         ,"£3,167.70"
Companies House,CH,25/09/2020,Contract Staff         ,Programme                     ,Hays Specialist Recruitment Ltd         ,"£3,167.70"
Companies House,CH,25/09/2020,Contract Staff         ,Programme                     ,Spring Technology Staffing Services Ltd ,"£3,171.60"
Companies House,CH,25/09/2020,Contract Staff         ,Programme                     ,Spring Technology Staffing Services Ltd ,"£3,964.50"
Companies House,CH,25/09/2020,Contract Staff         ,Programme                     ,Spring Technology Staffing Services Ltd ,"£3,964.50"
Companies House,CH,25/09/2020,Contract Staff         ,Programme                     ,Spring Technology Staffing Services Ltd ,"£3,964.50"
Companies House,CH,08/09/2020,Contract Staff         ,Programme                     ,Spring Technology Staffing Services Ltd ,"£4,112.40"
Companies House,CH,08/09/2020,Contract Staff         ,Programme                     ,Spring Technology Staffing Services Ltd ,"£4,112.40"
Companies House,CH,08/09/2020,Contract Staff         ,Programme                     ,Spring Technology Staffing Services Ltd ,"£5,140.50"
Companies House,CH,08/09/2020,Contract Staff         ,Programme                     ,Spring Technology Staffing Services Ltd ,"£5,140.50"
Companies House,CH,23/09/2020,Contract Staff         ,Programme                     ,Spring Technology Staffing Services Ltd ,"£5,140.50"
Companies House,CH,24/09/2020,Contract Staff         ,Programme                     ,Spring Technology Staffing Services Ltd ,"£5,140.50"
Companies House,CH,04/09/2020,Contract Staff         ,Software Engineering          ,Hays Specialist Recruitment Ltd         ,"£4,329.78"
Companies House,CH,23/09/2020,Contract Staff         ,Software Engineering          ,Hays Specialist Recruitment Ltd         ,"£4,329.78"
Companies House,CH,24/09/2020,Contract Staff         ,Software Engineering          ,Hays Specialist Recruitment Ltd         ,"£4,329.78"
Companies House,CH,08/09/2020,Contract Staff         ,Software Management           ,ALEXANDER MANN SOLUTIONS                ,"£5,861.76"
Companies House,CH,25/09/2020,Contract Staff         ,Software Management           ,ALEXANDER MANN SOLUTIONS                ,"£8,206.46"
Companies House,CH,15/09/2020,Contract Staff         ,"Strategy, Policy & Communications      ",Hays Specialist Recruitment Ltd         ,£846.00
Companies House,CH,15/09/2020,Contract Staff         ,"Strategy, Policy & Communications      ",Hays Specialist Recruitment Ltd         ,£846.00
Companies House,CH,24/09/2020,Contract Staff         ,"Strategy, Policy & Communications      ",Hays Specialist Recruitment Ltd         ,£846.00
Companies House,CH,10/09/2020,Contract Staff         ,"Strategy, Policy & Communications      ",Hays Specialist Recruitment Ltd         ,"£1,171.14"
Companies House,CH,29/09/2020,Contract Staff         ,"Strategy, Policy & Communications      ",Hays Specialist Recruitment Ltd         ,"£1,386.61"
Companies House,CH,23/09/2020,Contract Staff         ,"Strategy, Policy & Communications      ",Hays Specialist Recruitment Ltd         ,"£1,386.62"
Companies House,CH,04/09/2020,Contract Staff         ,"Strategy, Policy & Communications      ",Hays Specialist Recruitment Ltd         ,"£1,489.67"
Companies House,CH,15/09/2020,Auditors Remuneration         ,Late Filing Penalties Accounting                ,National Audit Office                   ,"£16,000.00"
Companies House,CH,15/09/2020,Auditors Remuneration         ,Organisational Overheads      ,National Audit Office                   ,"£45,000.00"
Companies House,CH,04/09/2020,Independent adjudication – details withheld,Late Filing Penalties                           ,Independent adjudication – details withheld,£888.00
Companies House,CH,18/09/2020,External Managed Services,Programme                     ,FDM GROUP                               ,"£43,440.00"
Companies House,CH,08/09/2020,Capitalised IT Developers     ,Programme                     ,Hays Specialist Recruitment Ltd         ,"£3,360.00"
Companies House,CH,02/09/2020,Capitalised IT Developers     ,Programme                     ,Hays Specialist Recruitment Ltd         ,"£3,487.50"
Companies House,CH,08/09/2020,Capitalised IT Developers     ,Programme                     ,Hays Specialist Recruitment Ltd         ,"£3,600.00"
Companies House,CH,08/09/2020,Capitalised IT Developers     ,Programme                     ,Hays Specialist Recruitment Ltd         ,"£3,720.00"
Companies House,CH,04/09/2020,Capitalised IT Developers     ,Programme                     ,Spring Technology Staffing Services Ltd ,"£3,964.50"
Companies House,CH,15/09/2020,Capitalised IT Developers     ,Programme                     ,Hays Specialist Recruitment Ltd         ,"£4,200.00"
Companies House,CH,15/09/2020,Capitalised IT Developers     ,Programme                     ,Hays Specialist Recruitment Ltd         ,"£4,200.00"
Companies House,CH,08/09/2020,Capitalised IT Developers     ,Programme                     ,Hays Specialist Recruitment Ltd         ,"£4,650.00"
Companies House,CH,23/09/2020,Capitalised IT Developers     ,Programme                     ,Hays Specialist Recruitment Ltd         ,"£4,650.00"
Companies House,CH,24/09/2020,Capitalised IT Developers     ,Programme                     ,Hays Specialist Recruitment Ltd         ,"£4,650.00"
Companies House,CH,15/09/2020,Capitalised IT Developers     ,Software Engineering          ,Hays Specialist Recruitment Ltd         ,"£3,103.82"
Companies House,CH,08/09/2020,Capitalised IT Developers     ,Software Engineering          ,Hays Specialist Recruitment Ltd         ,"£3,879.78"
Companies House,CH,08/09/2020,Capitalised IT Developers     ,Software Engineering          ,Hays Specialist Recruitment Ltd         ,"£3,879.78"
Companies House,CH,23/09/2020,Capitalised IT Developers     ,Software Engineering          ,Hays Specialist Recruitment Ltd         ,"£3,879.78"
Companies House,CH,24/09/2020,Capitalised IT Developers     ,Software Engineering          ,Hays Specialist Recruitment Ltd         ,"£3,879.78"
Companies House,CH,15/09/2020,Circuit Rental                ,IT Infrastructure             ,AdEPT Telecom PLC                       ,"£4,306.34"
Companies House,CH,02/09/2020,Circuit Rental                ,IT Infrastructure             ,Virgin Media Business                   ,"£4,387.85"
Companies House,CH,09/09/2020,Circuit Rental                ,IT Infrastructure             ,HIGHSPEED OFFICE LTD                    ,"£14,696.19"
Companies House,CH,24/09/2020,Computer Equipment            ,Covid 19 Activity             ,BIRMINGHAM TELECOMMUNICATIONS LIMITED   ,"£20,264.54"
Companies House,CH,18/09/2020,Consultants Computer          ,Accounting                    ,Advanced Business Solutions             ,"£1,275.49"
Companies House,CH,18/09/2020,Consultants Computer          ,Accounting                    ,Advanced Business Solutions             ,"£3,755.94"
Companies House,CH,25/09/2020,Consultants Management        ,Building Services             ,ARCADIS LLP                             ,"£2,700.00"
Companies House,CH,10/09/2020,Contact Centre                ,CDD Cardiff                   ,Serco Limited                           ,"£154,936.58"
Companies House,CH,25/09/2020,Electricity                   ,Building Services             ,E D F ENERGY CUSTOMERS PLC              ,"£45,363.93"
Companies House,CH,14/09/2020,Electricity                   ,Edinburgh                     ,E D F ENERGY CUSTOMERS PLC              ,£663.09
Companies House,CH,14/09/2020,Electricity                   ,Edinburgh                     ,E D F ENERGY CUSTOMERS PLC              ,£725.42
Companies House,CH,10/09/2020,Electricity                   ,Northern Ireland              ,Power NI                                ,"£1,784.54"
Companies House,CH,30/09/2020,Environmental costs           ,Building Services             ,British Standards Institute             ,"£1,050.00"
Companies House,CH,08/09/2020,EST Additions This Year       ,Building Services             ,HOBART UK                               ,"£31,387.00"
Companies House,CH,16/09/2020,EST Additions This Year       ,Covid 19 Activity             ,COMBINED OFFICE INTERIORS LTD           ,£530.50
Companies House,CH,16/09/2020,EST Additions This Year       ,Covid 19 Activity             ,COMBINED OFFICE INTERIORS LTD           ,"£2,635.50"
Companies House,CH,04/09/2020,EST Additions This Year       ,Covid 19 Activity             ,COMBINED OFFICE INTERIORS LTD           ,"£3,558.00"
Companies House,CH,18/09/2020,External managed services     ,Programme                     ,FDM GROUP                               ,"£58,170.00"
Companies House,CH,18/09/2020,External managed services     ,Programme                     ,FDM GROUP                               ,"£62,660.00"
Companies House,CH,15/09/2020,External managed services     ,Programme                     ,FDM GROUP                               ,"£64,260.00"
Companies House,CH,18/09/2020,Gazette Notices               ,CDD Cardiff                   ,Stationery Office                       ,"£1,320.00"
Companies House,CH,23/09/2020,Gazette Notices               ,CDD Cardiff                   ,Stationery Office                       ,"£1,320.00"
Companies House,CH,18/09/2020,Gazette Notices               ,CDD Cardiff                   ,Stationery Office                       ,"£8,497.64"
Companies House,CH,23/09/2020,Gazette Notices               ,CDD Cardiff                   ,Stationery Office                       ,"£8,497.64"
Companies House,CH,16/09/2020,Government Legal              ,CDD Cardiff                   ,GOVERNMENT LEGAL DEPARTMENT             ,"£79,406.04"
Companies House,CH,14/09/2020,Government Legal              ,Legal Services                ,GOVERNMENT LEGAL DEPARTMENT             ,£524.40
Companies House,CH,23/09/2020,Government Legal              ,Legal Services                ,GOVERNMENT LEGAL DEPARTMENT             ,£792.00
Companies House,CH,07/09/2020,Hardware & Software Maintenance,Accounting                    ,HAGUE COMPUTER SUPPLIES                 ,"£1,280.00"
Companies House,CH,02/09/2020,Hardware & Software Maintenance,IT Infrastructure             ,CADSPEC LTD                             ,"£3,375.00"
Companies House,CH,11/09/2020,Hardware & Software Maintenance,IT Infrastructure             ,INSIGHT DIRECT (UK) LTD                 ,"£17,630.52"
Companies House,CH,11/09/2020,Hardware & Software Maintenance,IT Infrastructure             ,SPECIALIST COMPUTER CENTRES PLC         ,"£59,244.65"
Companies House,CH,23/09/2020,Hardware & Software Maintenance,Procurement                   ,MHR                                     ,"£2,439.84"
Companies House,CH,15/09/2020,Hardware & Software Maintenance,Procurement                   ,Docstor Ltd                             ,"£7,120.00"
Companies House,CH,08/09/2020,Micrographics                 ,CDD Cardiff                   ,Transmedia Technology Ltd               ,£788.34
Companies House,CH,10/09/2020,Telephone Costs,IT Infrastructure             ,TELEFONICA UK LTD                       ,"£4,458.09"
Companies House,CH,23/09/2020,Occupational Health Contract  ,Building Services             ,PEOPLE ASSET MANAGEMENT GROUP LTD       ,"£1,597.60"
Companies House,CH,24/09/2020,Occupational Health Contract  ,Building Services             ,PEOPLE ASSET MANAGEMENT GROUP LTD       ,"£2,148.00"
Companies House,CH,11/09/2020,Occupational Health Contract  ,Building Services             ,PEOPLE ASSET MANAGEMENT GROUP LTD       ,"£2,232.00"
Companies House,CH,02/09/2020,Occupational Health Contract  ,Building Services             ,PEOPLE ASSET MANAGEMENT GROUP LTD       ,"£2,516.00"
Companies House,CH,08/09/2020,Occupational Health Contract  ,Building Services             ,PEOPLE ASSET MANAGEMENT GROUP LTD       ,"£2,635.00"
Companies House,CH,09/09/2020,Office Machinery Maintenance  ,Procurement                   ,RISO (uk) LTD                           ,£851.41
Companies House,CH,23/09/2020,Office Machinery Maintenance  ,Procurement                   ,QUADIENT UK LIMITED                     ,"£1,127.08"
Companies House,CH,02/09/2020,Office Machinery Maintenance  ,Procurement                   ,RISO (uk) LTD                           ,"£1,455.88"
Companies House,CH,29/09/2020,Office Machinery Maintenance  ,Procurement                   ,Konica Minolta Business Solutions (Wales),"£6,089.08"
Companies House,CH,18/09/2020,payroll and e5 Maintenance    ,Accounting                    ,Advanced Business Solutions             ,"£1,476.72"
Companies House,CH,18/09/2020,payroll and e5 Maintenance    ,Accounting                    ,Advanced Business Solutions             ,"£180,571.02"
Companies House,CH,18/09/2020,payroll and e5 Maintenance    ,IPO Finance App           ,Advanced Business Solutions             ,"£27,533.17"
Companies House,CH,18/09/2020,payroll and e5 Maintenance    ,Late Filing Penalties Accounting                ,Advanced Business Solutions             ,"£36,720.22"
Companies House,CH,08/09/2020,Print and Mailing Contract    ,CDD Cardiff                   ,APS GROUP                               ,£744.14
Companies House,CH,10/09/2020,Print and Mailing Contract    ,CDD Cardiff                   ,APS GROUP                               ,"£1,573.72"
Companies House,CH,08/09/2020,Print and Mailing Contract    ,CDD Cardiff                   ,APS GROUP                               ,"£19,106.23"
Companies House,CH,08/09/2020,Print and Mailing Contract    ,CDD Cardiff                   ,APS GROUP                               ,"£37,313.38"
Companies House,CH,10/09/2020,Print and Mailing Contract    ,CDD Cardiff                   ,APS GROUP                               ,"£41,316.50"
Companies House,CH,23/09/2020,Print and Mailing Contract    ,CDD Cardiff                   ,APS GROUP                               ,"£43,793.44"
Companies House,CH,25/09/2020,Print and Mailing Contract    ,CDD Cardiff                   ,APS GROUP                               ,"£55,738.67"
Companies House,CH,10/09/2020,Print and Mailing Contract    ,Late Filing Penalties                           ,A McLay & Company Ltd                   ,"£1,146.47"
Companies House,CH,10/09/2020,Print and Mailing Contract    ,Late Filing Penalties                           ,A McLay & Company Ltd                   ,"£1,783.20"
Companies House,CH,10/09/2020,Print and Mailing Contract    ,Late Filing Penalties                           ,A McLay & Company Ltd                   ,"£1,853.94"
Companies House,CH,10/09/2020,Print and Mailing Contract    ,Late Filing Penalties                           ,A McLay & Company Ltd                   ,"£2,025.03"
Companies House,CH,18/09/2020,Professional Fees             ,Accounting                    ,FINANCIAL REPORTING COUNCIL LTD         ,"£18,720.00"
Companies House,CH,29/09/2020,Professional Fees             ,Building Services             ,WYG Environment Planning Transport Limit,"£5,969.20"
Companies House,CH,30/09/2020,Professional Fees             ,Covid 19 Activity             ,NCC GROUP SECURITY                      ,"£3,450.00"
Companies House,CH,04/09/2020,Professional Fees             ,HR Service delivery           ,Investors in People UK                  ,"£3,000.00"
Companies House,CH,04/09/2020,Professional Fees             ,HR Service delivery           ,Investors in People UK                  ,"£14,250.00"
Companies House,CH,08/09/2020,Professional Fees             ,IT Infrastructure             ,Konica Minolta Business Solutions (wales,"£2,736.00"
Companies House,CH,10/09/2020,Professional Fees             ,IT Infrastructure             ,Computacenter (GCAT)                    ,"£5,706.24"
Companies House,CH,04/09/2020,Publications General          ,"Strategy, Policy & Communications      ",Hays Specialist Recruitment Ltd         ,£846.00
Companies House,CH,21/09/2020,RATES                         ,Building Services             ,City and County of Cardiff              ,"£75,970.00"
Companies House,CH,30/09/2020,Recruitment Expenses          ,HR Service delivery           ,REDACTIVE PUBLISHING LTD                ,£900.00
Companies House,CH,29/09/2020,Recruitment Expenses          ,HR Service delivery           ,LINKEDIN IRELAND UNLIMITED COMPANY      ,"£45,225.00"
Companies House,CH,11/09/2020,Rent                          ,London Information Centre,Jon Christopher Chartered Surveyors     ,"£10,612.50"
Companies House,CH,16/09/2020,Restaurant Services           ,Building Services             ,ARAMARK                                 ,"£13,530.08"
Companies House,CH,25/09/2020,Rolling Maintenance & minor contracts,Building Services             ,CLEMENT WALKER ELECTRICAL & MECHANICAL  ,"£9,600.00"
Companies House,CH,08/09/2020,Rolling Maintenance & minor contracts,Building Services             ,CLEMENT WALKER ELECTRICAL & MECHANICAL  ,"£10,000.00"
Companies House,CH,23/09/2020,Postage,"DMS, Repos and IDT            ",Royal Mail                              ,"£1,853.80"
Companies House,CH,02/09/2020,Postage,"DMS, Repos and IDT            ",Royal Mail                              ,"£2,355.09"
Companies House,CH,11/09/2020,Postage,"DMS, Repos and IDT            ",Royal Mail                              ,"£3,071.61"
Companies House,CH,23/09/2020,Postage,Edinburgh                     ,Royal Mail                              ,£601.67
Companies House,CH,15/09/2020,Security                      ,Accounting                    ,Loomis Uk Ltd                           ,£649.45
Companies House,CH,11/09/2020,Service charges               ,London Information Centre,Jon Christopher Chartered Surveyors     ,"£9,889.80"
Companies House,CH,23/09/2020,Software as a service         ,IT Infrastructure             ,GRANICUS                                ,£581.00
Companies House,CH,07/09/2020,Software as a service         ,IT Infrastructure             ,AZEUS UK LTD                            ,"£3,337.20"
Companies House,CH,10/09/2020,Software as a service         ,IT Infrastructure             ,E2E ASSURE                              ,"£19,935.00"
Companies House,CH,18/09/2020,Software Licence              ,Accounting                    ,Advanced Business Solutions             ,"£9,890.00"
Companies House,CH,16/09/2020,Software Licence              ,HR Strategy & Policy          ,WEALTH WIZARDS BENEFITS LTD             ,"£5,000.00"
Companies House,CH,11/09/2020,Software Licence              ,IT Infrastructure             ,SPECIALIST COMPUTER CENTRES PLC         ,"£6,160.00"
Companies House,CH,18/09/2020,Stakeholder Comms             ,"Strategy, Policy & Communications      ",DRAW CLARITY                            ,"£3,960.00"
Companies House,CH,10/09/2020,Stationery & Consumables      ,Procurement                   ,A McLay & Company Ltd                   ,£900.00
Companies House,CH,04/09/2020,Travel         ,Covid 19 Activity             ,CITY CABS (EDINBURGH) LTD               ,£754.10
Companies House,CH,15/09/2020,Telecom Maintenance           ,IT Infrastructure             ,MAINTEL EUROPE LTD                      ,"£14,975.96"
Companies House,CH,11/09/2020,TFM refurbishment             ,Building Services             ,WILLMOTT DIXON INTERIORS LTD            ,"£6,982.51"
Companies House,CH,18/09/2020,Training External             ,Accounting                    ,LIAISON GROUP ,"£2,350.00"
Companies House,CH,25/09/2020,Training External             ,Training                      ,BITESIZE COMPUTER TRAINING LTD          ,£500.00
Companies House,CH,08/09/2020,Training External             ,Training                      ,BITESIZE COMPUTER TRAINING LTD          ,"£1,000.00"
Companies House,CH,25/09/2020,Training External             ,Training                      ,CSL-KPMG LLP                            ,"£1,251.00"
Companies House,CH,25/09/2020,Training External             ,Training                      ,CSL-KPMG LLP                            ,"£1,251.00"
Companies House,CH,23/09/2020,Translation                   ,CDD Cardiff                   ,FCDO Services  Translation &Interpreting,"£1,395.40"
Companies House,CH,16/09/2020,Water                         ,Building Services             ,Dwr Cymru Welsh Water                   ,£827.97
Companies House,CH,23/09/2020,Wood Pellets                  ,Building Services             ,AMP CLEAN ENERGY                        ,"£4,074.45"
Companies House,CH,27/09/2020,Rent                          ,Edinburgh                     ,KNIGHT FRANK                            ,"£21,826.70"
Companies House,CH,27/09/2020,Service charges               ,Edinburgh                     ,KNIGHT FRANK                            ,"£4,561.22"
Companies House,CH,09/09/2020,RATES                         ,London Information Centre            ,CITY OF WESTMINSTER                     ,"£1,934.00"
Companies House,CH,09/09/2020,RATES                         ,London Information Centre            ,CITY OF WESTMINSTER                     ,"£2,944.00"
Companies House,CH,03/09/2020,Service charges               ,London Information Centre            ,Jon Christopher Chartered Surveyors     ,"£3,296.60"
Companies House,CH,26/09/2020,Rates,Edinburgh                     ,The City of Edinburgh Council           ,"£8,846.00"
Companies House,CH,26/092020,Car parking contract          ,Edinburgh                     ,The City of Edinburgh Council           ,£560.00
